fUSD/lending_fUSD_20250208
["ID","MTS","AMOUNT","RATE_DAILY","PERIOD"]
[352254747,1739019052947,-556.57,0.00010257,2]
[352254748,1739019052957,-2409.54,0.00010257,2]
[352254749,1739019052966,-500.0,0.00010257,2]
[352254750,1739019052976,-521.61,0.00010257,2]
[352254751,1739019052985,-1454.28,0.00010257,2]
[352254752,1739019052994,-500.0,0.00010257,2]
[352254753,1739019053004,-500.0,0.00010257,2]
[352254754,1739019053014,-1765.01,0.00010257,2]
[352254755,1739019053023,-1985.75,0.00010257,2]
[352254756,1739019053032,-500.0,0.00010257,2]
[352254757,1739019053042,-1199.55,0.00010257,2]
[352254758,1739019053051,-871.18,0.00010257,2]
[352254759,1739019053061,-500.0,0.00010257,2]
[352254760,1739019053070,-2599.62,0.00010257,2]
[352254761,1739019053079,-500.0,0.00010257,2]
[352254762,1739019053088,-1854.84,0.00010257,2]
[352254763,1739019053098,-500.0,0.00010257,2]
[352254764,1739019053107,-893.79,0.00010257,2]
[352254765,1739019053116,-500.0,0.00010257,2]
[352254766,1739019053125,-500.0,0.00010257,2]
[352254767,1739019053134,-1978.01,0.00010257,2]
[352254768,1739019053143,-500.0,0.00010257,2]
[352254769,1739019053152,-4080.58,0.00010257,2]
[352254770,1739019053162,-1719.91,0.00010257,2]
[352254771,1739019053171,-502.21867091,0.00010257,2]
[352254772,1739019053180,-4167.24,0.00010257,2]
[352254773,1739019053189,-500.0,0.00010257,2]
[352254774,1739019053198,-12253.86,0.00010257,2]
[352254775,1739019053207,-1340.27,0.00010257,2]
[352254776,1739019053216,-1039.39,0.00010257,2]
[352254777,1739019053225,-500.0,0.00010257,2]
[352254778,1739019053234,-500.0,0.00010257,2]
[352254779,1739019053243,-500.0,0.00010257,2]
[352254780,1739019053252,-500.0,0.00010257,2]
[352254781,1739019053261,-1640.04,0.00010257,2]
[352254782,1739019053270,-151.31406015,0.00010257,2]
[352254783,1739019053279,-500.0,0.00010257,2]
[352254784,1739019053288,-1083.05,0.00010257,2]
[352254785,1739019053297,-500.0,0.00010257,2]
[352254786,1739019053306,-502.10165958,0.00010257,2]
[352254787,1739019053315,-1904.32,0.00010257,2]
[352254788,1739019053324,-802.41,0.00010257,2]
[352254789,1739019053333,-500.0,0.00010257,2]
[352254790,1739019053342,-500.0,0.00010257,2]
[352254791,1739019053352,-500.0,0.00010257,2]
[352254792,1739019053361,-500.0,0.00010257,2]
[352254793,1739019053371,-502.52431093,0.00010257,2]
[352254794,1739019053381,-4946.08,0.00010257,2]
[352254795,1739019053392,-1721.15,0.00010257,2]
[352254796,1739019053403,-1252.24,0.00010257,2]
[352254797,1739019053412,-500.92656763,0.00010257,2]
[352254798,1739019053421,-500.0,0.00010257,2]
[352254799,1739019053431,-1389.14,0.00010257,2]
[352254800,1739019053440,-1691.94,0.00010257,2]
[352254801,1739019053449,-1132.83,0.00010257,2]
[352254802,1739019053459,-1046.15,0.00010257,2]
[352254803,1739019053468,-2627.54,0.00010257,2]
[352254804,1739019053480,-519.94,0.00010257,2]
[352254805,1739019053489,-500.0,0.00010257,2]
[352254806,1739019053498,-500.0,0.00010257,2]
[352254807,1739019053507,-589.54266638,0.00010257,2]
[352254808,1739019053516,-512.52,0.00010257,2]
[352254809,1739019053526,-500.0,0.00010257,2]
[352254810,1739019053534,-500.0,0.00010257,2]
[352254811,1739019053545,-500.0,0.00010257,2]
[352254812,1739019053554,-3945.23,0.00010257,2]
[352254813,1739019053563,-500.0,0.00010257,2]
[352254814,1739019053573,-1727.91,0.00010257,2]
[352254815,1739019053582,-284.16693676,0.00010257,2]
[352254816,1739019053592,-500.0,0.00010257,2]
[352254817,1739019053601,-500.0,0.00010257,2]
[352254818,1739019053610,-500.0,0.00010257,2]
[352254819,1739019053619,-500.0,0.00010257,2]
[352254820,1739019053628,-3984.19,0.00010257,2]
[352254821,1739019053637,-574.31920434,0.00010257,2]
[352254822,1739019053646,-949.44,0.00010257,2]
[352254823,1739019053655,-500.0,0.00010257,2]
[352254824,1739019053664,-327.86747057,0.00010257,2]
[352254825,1739019053674,-500.0,0.00010257,2]
[352254826,1739019053684,-500.0,0.00010257,2]
[352254827,1739019053693,-3057.43,0.00010257,2]
[352254828,1739019053703,-618.76,0.00010257,2]
[352254829,1739019053712,-714.81,0.00010257,2]
[352254830,1739019053721,-1900.09,0.00010257,2]
[352254831,1739019053731,-4918.46,0.00010257,2]
[352254832,1739019053740,-500.0,0.00010257,2]
[352254833,1739019053749,-2718.67,0.00010257,2]
[352254834,1739019053757,-1307.78,0.00010257,2]
[352254835,1739019053767,-500.0,0.00010257,2]
[352254836,1739019053777,-500.0,0.00010257,2]
[352254837,1739019053788,-721.31,0.00010257,2]
[352254838,1739019053799,-500.0,0.00010257,2]
[352254839,1739019053808,-500.0,0.00010257,2]
[352254840,1739019053817,-500.0,0.00010257,2]
[352254841,1739019053826,-500.0,0.00010257,2]
[352254842,1739019053835,-500.0,0.00010257,2]
[352254843,1739019053845,-500.0,0.00010257,2]
[352254844,1739019053854,-570.33,0.00010257,2]
[352254845,1739019053864,-2870.05,0.00010257,2]
[352254846,1739019053873,-860.75,0.00010257,2]
[352254847,1739019053882,-500.0,0.00010257,2]
[352254848,1739019053891,-500.0,0.00010257,2]
[352254849,1739019053900,-500.0,0.00010257,2]
[352254850,1739019053910,-3205.41,0.00010257,2]
[352254851,1739019053919,-500.0,0.00010257,2]
[352254852,1739019053928,-3098.11,0.00010257,2]
[352254853,1739019053939,-500.0,0.00010257,2]
[352254854,1739019053949,-500.0,0.00010257,2]
[352254855,1739019053958,-1823.36,0.00010257,2]
[352254856,1739019053967,-600.49,0.00010257,2]
[352254857,1739019053976,-1639.56,0.00010257,2]
[352254858,1739019053987,-500.0,0.00010257,2]
[352254859,1739019053997,-2230.91,0.00010257,2]
[352254860,1739019054006,-5256.2,0.00010257,2]
[352254861,1739019054016,-500.0,0.00010257,2]
[352254862,1739019054026,-755.89,0.00010257,2]
[352254863,1739019054035,-1950.99,0.00010257,2]
[352254864,1739019054045,-1465.86,0.00010257,2]
[352254865,1739019054054,-730.02,0.00010257,2]
[352254866,1739019054063,-500.0,0.00010257,2]
[352254867,1739019054072,-500.0,0.00010257,2]
[352254868,1739019054082,-500.0,0.00010257,2]
[352254869,1739019054091,-3908.9,0.00010257,2]
[352254870,1739019054101,-597.26,0.00010257,2]
[352254871,1739019054110,-399.42896717,0.00010257,2]
[352254872,1739019054119,-500.0,0.00010257,2]
[352254873,1739019054128,-1496.15,0.00010257,2]
[352254874,1739019054137,-500.0,0.00010257,2]
[352254875,1739019054147,-3150.83,0.00010257,2]
[352254876,1739019054156,-500.0,0.00010257,2]
[352254877,1739019054165,-500.0,0.00010257,2]
[352254878,1739019054175,-3721.01,0.00010257,2]
[352254879,1739019054187,-1347.86,0.00010257,2]
[352254880,1739019054195,-500.0,0.00010257,2]
[352254881,1739019054204,-2167.97,0.00010257,2]
[352254882,1739019054214,-1543.2,0.00010257,2]
[352254883,1739019054223,-504.87748506,0.00010257,2]
[352254884,1739019054232,-500.0,0.00010257,2]
[352254885,1739019054241,-3577.47,0.00010257,2]
[352254886,1739019054251,-835.83,0.00010257,2]
[352254887,1739019054262,-500.0,0.00010257,2]
[352254888,1739019054273,-549.39,0.00010258,2]
[352254889,1739019054282,-500.0,0.00010258,2]
[352254890,1739019054292,-504.9711384,0.00010258,2]
[352254891,1739019054301,-500.0,0.00010258,2]
[352254892,1739019054311,-500.0,0.00010258,2]
[352254893,1739019054321,-500.0,0.00010258,2]
[352254894,1739019054331,-500.0,0.00010258,2]
[352254895,1739019054340,-500.0,0.00010258,2]
[352254896,1739019054350,-500.0,0.00010258,2]
[352254897,1739019054360,-500.0,0.00010258,2]
[352254898,1739019054369,-500.0,0.00010258,2]
[352254899,1739019054379,-500.0,0.00010258,2]
[352254900,1739019054388,-500.0,0.00010258,2]
[352254901,1739019054398,-500.0,0.00010258,2]
[352254902,1739019054410,-500.0,0.00010258,2]
[352254903,1739019054420,-502.50544038,0.00010258,2]
[352254904,1739019054429,-500.0,0.00010258,2]
[352254905,1739019054438,-602.87,0.00010258,2]
[352254906,1739019054450,-1367.43,0.00010258,2]
[352254907,1739019054461,-567.33,0.00010258,2]
[352254908,1739019054472,-742.72,0.00010258,2]
[352254909,1739019054484,-1443.9,0.00010258,2]
[352254910,1739019054493,-500.0,0.00010258,2]
[352254911,1739019054502,-1546.44,0.00010258,2]
[352254912,1739019054512,-2113.11,0.00010258,2]
[352254913,1739019054522,-1746.31,0.00010258,2]
[352254914,1739019054534,-825.67,0.00010258,2]
[352254915,1739019054544,-706.55,0.00010258,2]
[352254916,1739019054553,-754.09,0.00010258,2]
[352254917,1739019054563,-500.0,0.00010258,2]
[352254918,1739019054571,-1816.29,0.00010258,2]
[352254919,1739019054580,-792.06,0.00010258,2]
[352254920,1739019054590,-1800.25,0.00010258,2]
[352254921,1739019054599,-500.0,0.00010258,2]
[352254922,1739019054608,-1741.18,0.00010258,2]
[352254923,1739019054616,-708.43,0.00010258,2]
[352254924,1739019054626,-820.36,0.00010258,2]
[352254925,1739019054635,-500.0,0.00010258,2]
[352254926,1739019054644,-879.9,0.00010258,2]
[352254927,1739019054654,-566.23,0.00010258,2]
[352254928,1739019054662,-500.0,0.00010258,2]
[352254929,1739019054672,-668.43,0.00010258,2]
[352254930,1739019054681,-697.71,0.00010258,2]
[352254931,1739019054691,-922.83,0.00010258,2]
[352254932,1739019054700,-500.0,0.00010258,2]
[352254933,1739019054709,-1031.15,0.00010258,2]
[352254934,1739019054718,-500.0,0.00010258,2]
[352254935,1739019054727,-501.93171129,0.00010273,2]
[352254936,1739019054737,-500.0,0.00010273,2]
[352254937,1739019054746,-358.02495375,0.00010273,2]
[352254938,1739019054755,-500.0,0.00010273,2]
[352254939,1739019054764,-152.62209611,0.00010273,2]
[352254940,1739019054773,-207.48922038,0.00010294,2]
[352254941,1739019054782,-2019.07866786,0.00010294,2]
[352254942,1739019054792,-1050.95080176,0.00010294,2]
[352254943,1739019054802,-617.12254656,0.00010294,2]
[352254944,1739019054811,-174.08,0.0001034,2]
[352254945,1739019054820,-174.22140754,0.00010343,2]
[352254946,1739019054830,-393.25,0.00010348,2]
[352254947,1739019054839,-500.0,0.00010392,2]
[352254948,1739019054848,-500.0,0.00010392,2]
[352254949,1739019054857,-500.0,0.00010392,2]
[352254950,1739019054866,-816.95,0.00010392,2]
[352254951,1739019054875,-599.04,0.00010392,2]
[352254952,1739019054885,-500.0,0.00010393,2]
[352254953,1739019054894,-500.0,0.00010393,2]
[352254954,1739019054904,-500.0,0.00010393,2]
[352254955,1739019054915,-500.0,0.00010393,2]
[352254956,1739019054927,-383.74379887,0.00010393,2]
[352254957,1739019054938,-565.74069754,0.00010393,2]
[352254958,1739019054948,-500.0,0.00010393,2]
[352254959,1739019054958,-500.0,0.00010393,2]
[352254960,1739019054967,-500.0,0.00010393,2]
[352254961,1739019054979,-500.0,0.00010393,2]
[352254962,1739019054989,-500.0,0.00010393,2]
[352254963,1739019054999,-500.0,0.00010393,2]
[352254964,1739019055008,-500.0,0.00010393,2]
[352254965,1739019055017,-500.0,0.00010393,2]
[352254966,1739019055027,-500.0,0.00010393,2]
[352254967,1739019055036,-500.0,0.00010393,2]
[352254968,1739019055046,-500.0,0.00010393,2]
[352254969,1739019055055,-515.97,0.00010393,2]
[352254970,1739019055064,-500.0,0.00010393,2]
[352254971,1739019055073,-500.0,0.00010393,2]
[352254972,1739019055082,-648.2,0.00010393,2]
[352254973,1739019055092,-500.0,0.00010393,2]
[352254974,1739019055101,-500.0,0.00010393,2]
[352254975,1739019055110,-3008.63252,0.00010393,2]
[352254976,1739019055119,-500.0,0.00010393,2]
[352254977,1739019055128,-2728.309725,0.00010393,2]
[352254978,1739019055138,-500.0,0.00010393,2]
[352254979,1739019055147,-3964.16,0.00010393,2]
[352254980,1739019055156,-503.42391031,0.00010393,2]
[352254981,1739019055165,-510.03157747,0.00010393,2]
[352254982,1739019055174,-500.0,0.00010393,2]
[352254983,1739019055183,-500.0,0.00010393,2]
[352254984,1739019055192,-500.0,0.00010393,2]
[352254985,1739019055201,-500.0,0.00010393,2]
[352254986,1739019055210,-1789.1,0.00010393,2]
[352254987,1739019055219,-500.0,0.00010393,2]
[352254988,1739019055228,-500.0,0.00010393,2]
[352254989,1739019055237,-500.0,0.00010393,2]
[352254990,1739019055247,-500.0,0.00010393,2]
[352254991,1739019055256,-199.47592605,0.00010393,2]
[352254992,1739019055266,-2632.84,0.00010393,2]
[352254993,1739019055278,-500.0,0.00010393,2]
[352254994,1739019055287,-500.0,0.00010393,2]
[352254995,1739019055297,-1472.27,0.00010393,2]
[352254996,1739019055307,-500.0,0.00010393,2]
[352254997,1739019055316,-500.0,0.00010393,2]
[352254998,1739019055327,-500.0,0.00010393,2]
[352254999,1739019055338,-500.0,0.00010393,2]
[352255000,1739019055348,-1246.73,0.00010393,2]
[352255001,1739019055359,-500.0,0.00010393,2]
[352255002,1739019055368,-732.86,0.00010393,2]
[352255003,1739019055378,-1635.35,0.00010393,2]
[352255004,1739019055389,-500.0,0.00010393,2]
[352255005,1739019055399,-415.4804824,0.00010393,2]
[352255006,1739019055409,-957.45,0.00010393,2]
[352255007,1739019055420,-154.500294,0.00010393,2]
[352255008,1739019055429,-500.0,0.00010393,2]
[352255009,1739019055438,-500.0,0.00010393,2]
[352255010,1739019055447,-500.0,0.00010393,2]
[352255011,1739019055456,-2129.11,0.00010393,2]
[352255012,1739019055466,-500.0,0.00010393,2]
[352255013,1739019055477,-500.0,0.00010393,2]
[352255014,1739019055487,-1486.98,0.00010393,2]
[352255015,1739019055497,-500.0,0.00010393,2]
[352255016,1739019055507,-500.0,0.00010393,2]
[352255017,1739019055517,-500.0,0.00010393,2]
[352255018,1739019055527,-719.04,0.00010393,2]
[352255019,1739019055538,-500.0,0.00010393,2]
[352255020,1739019055548,-2812.8,0.00010393,2]
[352255021,1739019055559,-500.0,0.00010393,2]
[352255022,1739019055572,-500.0,0.00010393,2]
[352255023,1739019055582,-500.0,0.00010393,2]
[352255024,1739019055591,-500.0,0.00010393,2]
[352255025,1739019055600,-500.0,0.00010393,2]
[352255026,1739019055609,-500.0,0.00010393,2]
[352255027,1739019055618,-500.0,0.00010393,2]
[352255028,1739019055627,-500.0,0.00010393,2]
[352255029,1739019055636,-500.0,0.00010393,2]
[352255030,1739019055645,-1251.32,0.00010393,2]
[352255031,1739019055654,-500.0,0.00010393,2]
[352255032,1739019055664,-500.0,0.00010393,2]
[352255033,1739019055674,-2408.46,0.00010393,2]
[352255034,1739019055684,-576.34,0.00010393,2]
[352255035,1739019055694,-2049.94,0.00010393,2]
[352255036,1739019055703,-500.0,0.00010393,2]
[352255037,1739019055712,-2596.03,0.00010393,2]
[352255038,1739019055722,-9020.31,0.00010393,2]
[352255039,1739019055731,-500.0,0.00010393,2]
[352255040,1739019055740,-1786.43,0.00010393,2]
[352255041,1739019055750,-694.65,0.00010393,2]
[352255042,1739019055759,-500.0,0.00010393,2]
[352255043,1739019055768,-1924.37,0.00010393,2]
[352255044,1739019055956,-3419.0,0.00010393,2]
[352255045,1739019055967,-1572.95,0.00010393,2]
[352255046,1739019055978,-500.0,0.00010393,2]
[352255047,1739019055987,-500.0,0.00010393,2]
[352255048,1739019055996,-1504.29,0.00010393,2]
[352255049,1739019056005,-500.0,0.00010393,2]
[352255050,1739019056015,-2063.74,0.00010393,2]
[352255051,1739019056024,-2135.24,0.00010393,2]
[352255052,1739019056033,-500.0,0.00010393,2]
[352255053,1739019056043,-2347.77,0.00010393,2]
[352255054,1739019056052,-3498.02,0.00010393,2]
[352255055,1739019056062,-500.0,0.00010393,2]
[352255056,1739019056072,-500.0,0.00010393,2]
[352255057,1739019056083,-500.0,0.00010393,2]
[352255058,1739019056092,-500.0,0.00010393,2]
[352255059,1739019056101,-2405.82,0.00010393,2]
[352255060,1739019056111,-500.0,0.00010393,2]
[352255061,1739019056122,-500.0,0.00010393,2]
[352255062,1739019056131,-2856.96,0.00010393,2]
[352255063,1739019056141,-500.0,0.00010393,2]
[352255064,1739019056151,-1222.26,0.00010393,2]
[352255065,1739019056162,-500.0,0.00010393,2]
[352255066,1739019056174,-500.0,0.00010393,2]
[352255067,1739019056184,-2445.85,0.00010393,2]
[352255068,1739019056195,-500.0,0.00010393,2]
[352255069,1739019056204,-1846.25,0.00010393,2]
[352255070,1739019056214,-500.0,0.00010393,2]
[352255071,1739019056225,-500.0,0.00010393,2]
[352255072,1739019056236,-3417.47,0.00010393,2]
[352255073,1739019056247,-500.0,0.00010393,2]
[352255074,1739019056256,-500.0,0.00010393,2]
[352255075,1739019056266,-1061.22,0.00010393,2]
[352255076,1739019056276,-153.57588535,0.00010393,2]
[352255077,1739019056287,-4021.02,0.00010393,2]
[352255078,1739019056296,-6046.06,0.00010393,2]
[352255079,1739019056307,-3135.85,0.00010393,2]
[352255080,1739019056319,-500.0,0.00010393,2]
[352255081,1739019056330,-166.24669048,0.00010393,2]
[352255082,1739019056339,-2712.34,0.00010393,2]
[352255083,1739019056349,-500.0,0.00010393,2]
[352255084,1739019056359,-500.0,0.00010393,2]
[352255085,1739019056369,-500.0,0.00010393,2]
[352255086,1739019056379,-500.0,0.00010393,2]
[352255087,1739019056390,-500.0,0.00010393,2]
[352255088,1739019056401,-3780.84,0.00010393,2]
[352255089,1739019056412,-500.0,0.00010393,2]
[352255090,1739019056422,-500.0,0.00010393,2]
[352255091,1739019056431,-500.0,0.00010393,2]
[352255092,1739019056443,-500.0,0.00010393,2]
[352255093,1739019056452,-500.0,0.00010393,2]
[352255094,1739019056462,-500.0,0.00010393,2]
[352255095,1739019056473,-4117.97,0.00010393,2]
[352255096,1739019056483,-1697.73,0.00010393,2]
[352255097,1739019056492,-500.0,0.00010393,2]
[352255098,1739019056501,-502.92960022,0.00010393,2]
[352255099,1739019056511,-500.0,0.00010393,2]
[352255100,1739019056520,-500.0,0.00010393,2]
[352255101,1739019056530,-500.0,0.00010393,2]
[352255102,1739019056539,-1473.95,0.00010393,2]
[352255103,1739019056549,-1832.0,0.00010393,2]
[352255104,1739019056559,-3636.89,0.00010393,2]
[352255105,1739019056569,-500.0,0.00010393,2]
[352255106,1739019056580,-500.0,0.00010393,2]
[352255107,1739019056590,-500.0,0.00010393,2]
[352255108,1739019056600,-1785.52,0.00010393,2]
[352255109,1739019056610,-500.0,0.00010393,2]
[352255110,1739019056620,-500.0,0.00010393,2]
[352255111,1739019056629,-501.7404012,0.00010393,2]
[352255112,1739019056639,-500.0,0.00010393,2]
[352255113,1739019056650,-4152.92,0.00010393,2]
[352255114,1739019056659,-500.0,0.00010393,2]
[352255115,1739019056668,-500.0,0.00010393,2]
[352255116,1739019056678,-500.0,0.00010393,2]
[352255117,1739019056687,-818.07,0.00010393,2]
[352255118,1739019056697,-500.0,0.00010393,2]
[352255119,1739019056706,-500.0,0.00010393,2]
[352255120,1739019056715,-1570.09,0.00010393,2]
[352255121,1739019056725,-500.0,0.00010393,2]
[352255122,1739019056736,-2671.65,0.00010393,2]
[352255123,1739019056750,-500.0,0.00010393,2]
[352255124,1739019056760,-500.0,0.00010393,2]
[352255125,1739019056771,-500.0,0.00010393,2]
[352255126,1739019056782,-1029.34,0.00010393,2]
[352255127,1739019056793,-500.0,0.00010393,2]
[352255128,1739019056803,-500.0,0.00010393,2]
[352255129,1739019056813,-500.0,0.00010393,2]
[352255130,1739019056823,-679.98,0.00010393,2]
[352255131,1739019056832,-500.0,0.00010393,2]
[352255132,1739019056842,-500.0,0.00010393,2]
[352255133,1739019056852,-862.4,0.00010393,2]
[352255134,1739019056862,-500.0,0.00010393,2]
[352255135,1739019056871,-503.72249523,0.00010393,2]
[352255136,1739019056880,-500.0,0.00010393,2]
[352255137,1739019056890,-500.0,0.00010393,2]
[352255138,1739019056900,-1691.54,0.00010393,2]
[352255139,1739019056909,-500.0,0.00010393,2]
[352255140,1739019056921,-500.0,0.00010393,2]
[352255141,1739019056931,-500.0,0.00010393,2]
[352255142,1739019056941,-500.0,0.00010393,2]
[352255143,1739019056951,-500.0,0.00010393,2]
[352255144,1739019056961,-500.0,0.00010393,2]
[352255145,1739019056970,-500.0,0.00010394,2]
[352255146,1739019056980,-507.87529275,0.00010394,2]
[352255147,1739019056989,-214.37938641,0.00010394,2]
[352255148,1739019057000,-500.0,0.00010394,2]
[352255149,1739019057010,-500.0,0.00010394,2]
[352255150,1739019057019,-500.0,0.00010394,2]
[352255151,1739019057028,-500.0,0.00010394,2]
[352255152,1739019057038,-500.0,0.00010394,2]
[352255153,1739019057047,-500.0,0.00010394,2]
[352255154,1739019057056,-500.0,0.00010394,2]
[352255155,1739019057066,-500.0,0.00010394,2]
[352255156,1739019057076,-500.0,0.00010394,2]
[352255157,1739019057087,-500.0,0.00010394,2]
[352255158,1739019057098,-500.0,0.00010394,2]
[352255159,1739019057108,-500.0,0.00010394,2]
[352255160,1739019057118,-500.0,0.00010394,2]
[352255161,1739019057127,-500.0,0.00010394,2]
[352255162,1739019057136,-500.0,0.00010394,2]
[352255163,1739019057145,-500.0,0.00010394,2]
[352255164,1739019057154,-500.0,0.00010394,2]
[352255165,1739019057163,-500.0,0.00010394,2]
[352255166,1739019057173,-500.0,0.00010394,2]
[352255167,1739019057182,-500.0,0.00010394,2]
[352255168,1739019057191,-500.0,0.00010394,2]
[352255169,1739019057200,-333.12225595,0.00010394,2]
[352255170,1739019057209,-500.0,0.00010394,2]
[352255171,1739019057218,-500.0,0.00010394,2]
[352255172,1739019057227,-500.0,0.00010394,2]
[352255173,1739019057236,-500.0,0.00010394,2]
[352255174,1739019057245,-500.0,0.00010394,2]
[352255175,1739019057254,-500.0,0.00010394,2]
[352255176,1739019057262,-500.0,0.00010394,2]
[352255177,1739019057271,-500.0,0.00010394,2]
[352255178,1739019057280,-500.0,0.00010394,2]
[352255179,1739019057289,-500.0,0.00010394,2]
[352255180,1739019057298,-500.0,0.00010394,2]
[352255181,1739019057307,-500.0,0.00010394,2]
[352255182,1739019057316,-500.0,0.00010394,2]
[352255183,1739019057325,-500.0,0.00010394,2]
[352255184,1739019057334,-546.69,0.00010394,2]
[352255185,1739019057343,-1162.43,0.00010394,2]
[352255186,1739019057351,-500.0,0.00010394,2]
[352255187,1739019057361,-1135.27,0.00010394,2]
[352255188,1739019057372,-633.17848736,0.00010394,2]
[352255189,1739019057382,-500.0,0.00010394,2]
[352255190,1739019057392,-681.58,0.00010394,2]
[352255191,1739019057405,-507.24494671,0.00010394,2]
[352255192,1739019057415,-1144.8,0.00010394,2]
[352255193,1739019057424,-500.0,0.00010394,2]
[352255194,1739019057435,-500.0,0.00010394,2]
[352255195,1739019057444,-500.0,0.00010394,2]
[352255196,1739019057453,-500.0,0.00010394,2]
[352255197,1739019057462,-500.0,0.00010394,2]
[352255198,1739019057472,-225.76848438,0.00010394,2]
[352255199,1739019057481,-500.0,0.00010394,2]
[352255200,1739019057491,-727.04,0.00010394,2]
[352255201,1739019057500,-500.0,0.00010394,2]
[352255202,1739019057510,-500.0,0.00010394,2]
[352255203,1739019057520,-810.06,0.00010394,2]
[352255204,1739019057531,-500.0,0.00010394,2]
[352255205,1739019057541,-811.55,0.00010394,2]
[352255206,1739019057550,-500.0,0.00010394,2]
[352255207,1739019057560,-1783.61,0.00010394,2]
[352255208,1739019057570,-1107.8,0.00010394,2]
[352255209,1739019057579,-309.62429365,0.00010394,2]
[352255210,1739019057589,-500.0,0.00010394,2]
[352255211,1739019057600,-500.0,0.00010394,2]
[352255212,1739019057609,-500.0,0.00010394,2]
[352255213,1739019057620,-500.0,0.00010394,2]
[352255214,1739019057630,-500.0,0.00010394,2]
[352255215,1739019057639,-500.0,0.00010394,2]
[352255216,1739019057648,-801.13,0.00010394,2]
[352255217,1739019057658,-500.0,0.00010394,2]
[352255218,1739019057668,-500.0,0.00010394,2]
[352255219,1739019057678,-611.29,0.00010394,2]
[352255220,1739019057690,-500.0,0.00010394,2]
[352255221,1739019057699,-500.0,0.00010394,2]
[352255222,1739019057709,-500.0,0.00010394,2]
[352255223,1739019057718,-500.0,0.00010394,2]
[352255224,1739019057728,-500.0,0.00010394,2]
[352255225,1739019057737,-500.0,0.00010394,2]
[352255226,1739019057747,-500.0,0.00010394,2]
[352255227,1739019057756,-1050.84,0.00010394,2]
[352255228,1739019057765,-500.0,0.00010394,2]
[352255229,1739019057775,-700.34,0.00010394,2]
[352255230,1739019057784,-822.05,0.00010394,2]
[352255231,1739019057794,-500.0,0.00010394,2]
[352255232,1739019057803,-500.0,0.00010394,2]
[352255233,1739019057812,-500.0,0.00010394,2]
[352255234,1739019057822,-500.0,0.00010394,2]
[352255235,1739019057831,-596.95,0.00010394,2]
[352255236,1739019057841,-566.69,0.00010394,2]
[352255237,1739019057850,-500.0,0.00010394,2]
[352255238,1739019057859,-516.81,0.00010394,2]
[352255239,1739019057868,-500.0,0.00010394,2]
[352255240,1739019057878,-1602.74,0.00010394,2]
[352255241,1739019057887,-655.84,0.00010394,2]
[352255242,1739019057896,-634.65,0.00010394,2]
[352255243,1739019057906,-500.0,0.00010394,2]
[352255244,1739019057919,-784.6,0.00010394,2]
[352255245,1739019057928,-288.95228301,0.00010394,2]
[352255246,1739019057937,-686.17,0.00010394,2]